bitfinex/quotes_BTCUSD_20250114
["timestamp","ask_amount","ask_price","bid_price","bid_amount"]
[1736820569469,0.0784357,94998.0,94984.0,0.210561]
[1736820569668,0.0019357,94998.0,94989.0,0.15]
[1736820569875,0.0019357,94998.0,94993.0,0.15]
[1736820570072,0.0019357,94998.0,94997.0,1.65]
[1736820570279,0.0019357,94998.0,94997.0,1.75980384]
[1736820571112,0.0029357,94998.0,94997.0,1.76680384]
[1736820572123,0.0029357,94998.0,94997.0,1.76980384]
[1736820572629,0.0019357,94998.0,94997.0,1.76280384]
[1736820572827,0.0029357,94998.0,94997.0,1.77574857]
[1736820573334,0.0029357,94998.0,94997.0,1.77274857]
[1736820573648,0.0029357,94998.0,94997.0,1.77828293]
[1736820574110,0.0029357,94998.0,94997.0,2.63508293]
[1736820574312,0.0029357,94998.0,94997.0,2.64592346]
[1736820575878,0.0029357,94998.0,94997.0,2.74592346]
[1736820578176,0.0029357,94998.0,94997.0,2.64592346]
[1736820581425,0.0029357,94998.0,94997.0,2.63508293]
[1736820586214,0.0029357,94998.0,94997.0,2.09848293]
[1736820587560,0.0029357,94998.0,94997.0,2.26668293]
[1736820588119,0.0029357,94998.0,94997.0,2.14368293]
[1736820588345,0.0029357,94998.0,94997.0,2.09848293]
[1736820588559,0.0029357,94998.0,94997.0,0.59848293]
[1736820591231,0.0029357,94998.0,94997.0,0.72148293]
[1736820591433,0.0029357,94998.0,94997.0,2.22148293]
[1736820592078,0.0029357,94998.0,94997.0,2.75808293]
[1736820592499,0.0029357,94998.0,94997.0,2.65808293]
[1736820592691,0.0029357,94998.0,94997.0,1.13508293]
[1736820595748,0.0029357,94998.0,94997.0,1.25808293]
[1736820595947,0.0029357,94998.0,94997.0,1.49373209]
[1736820596370,0.0029357,94998.0,94997.0,1.25808293]
[1736820596965,0.0029357,94998.0,94997.0,1.13508293]
[1736820598070,0.0029357,94998.0,94997.0,0.48867909]
[1736820600934,0.0029357,94998.0,94997.0,0.33867909]
[1736820601119,0.0029357,94998.0,94997.0,0.01847909]
[1736820601311,0.0804357,94998.0,94997.0,0.01847909]
[1736820601714,0.0804357,94998.0,94997.0,0.013]
[1736820602094,0.210532,94997.0,94991.0,0.5366]
[1736820602520,0.0834357,94998.0,94991.0,0.5366]
[1736820602834,0.0794357,94998.0,94991.0,0.5366]
[1736820603086,0.0794357,94998.0,94997.0,0.003]
[1736820603296,0.0794357,94998.0,94997.0,0.002]
[1736820603671,0.0794357,94998.0,94997.0,0.00151999]
[1736820604078,0.0794357,94998.0,94995.0,0.210536]
[1736820604417,0.0794357,94998.0,94996.0,0.00152388]
[1736820604720,0.0794357,94998.0,94995.0,0.210536]
[1736820604883,0.0794357,94998.0,94997.0,0.00152567]
[1736820605088,0.0794357,94998.0,94996.0,0.00152388]
[1736820605290,0.0794357,94998.0,94997.0,0.0054704]
[1736820605489,0.0019357,94998.0,94997.0,0.11527424]
[1736820606020,0.0019357,94998.0,94997.0,0.11727424]
[1736820606723,0.0019357,94998.0,94997.0,0.12232676]
[1736820606898,0.0019357,94998.0,94997.0,0.12127424]
[1736820608212,0.0019357,94998.0,94997.0,0.27127424]
[1736820609320,0.0019357,94998.0,94997.0,1.77127424]
[1736820615317,0.0019357,94998.0,94997.0,1.76927424]
[1736820615452,0.0019357,94998.0,94997.0,1.77027424]
[1736820615660,0.0019357,94998.0,94997.0,2.00613173]
[1736820615975,0.0029357,94998.0,94997.0,2.63607424]
[1736820616299,0.0029357,94998.0,94997.0,2.65574754]
[1736820616458,0.0029357,94998.0,94997.0,2.65074754]
[1736820616810,0.0019357,94998.0,94997.0,2.88188671]
[1736820617001,0.0029357,94998.0,94997.0,2.89088671]
[1736820617154,0.0029357,94998.0,94997.0,2.65474754]
[1736820617367,0.0029357,94998.0,94997.0,2.63507424]
[1736820617589,0.0029357,94998.0,94997.0,2.87121341]
[1736820618310,0.0019357,94998.0,94997.0,2.85821341]
[1736820618524,0.0029357,94998.0,94997.0,2.86721341]
[1736820618742,0.0029357,94998.0,94997.0,2.63607424]
[1736820619798,0.0029357,94998.0,94997.0,2.87221341]
[1736820620023,0.0029357,94998.0,94997.0,2.63607424]
[1736820621650,0.0029357,94998.0,94997.0,2.87217615]
[1736820624362,0.0029357,94998.0,94997.0,2.63607424]
[1736820625088,0.0029357,94998.0,94997.0,2.87218389]
[1736820625734,0.0029357,94998.0,94997.0,2.63607424]
[1736820628301,0.0029357,94998.0,94997.0,2.87221514]
[1736820628766,0.0029357,94998.0,94997.0,2.65574542]
[1736820629840,0.0029357,94998.0,94997.0,2.89184057]
[1736820630247,0.0029357,94998.0,94997.0,2.87216939]
[1736820630444,0.0029357,94998.0,94997.0,2.75907424]
[1736820630622,0.0029357,94998.0,94997.0,2.70517424]
[1736820631005,0.0008533,95001.0,95000.0,0.1]
[1736820631218,0.0008533,95001.0,95000.0,0.60935606]
[1736820631455,0.0008533,95001.0,95000.0,1.46510384]
[1736820631629,0.0008533,95001.0,95000.0,2.96826493]
[1736820631828,3e-07,95001.0,95000.0,3.76813814]
[1736820632033,3e-07,95001.0,95000.0,3.02853712]
[1736820632257,3e-07,95001.0,95000.0,3.03653712]
[1736820632637,3e-07,95001.0,95000.0,3.02853712]
[1736820632815,3e-07,95001.0,95000.0,3.03653712]
[1736820633017,3e-07,95001.0,95000.0,3.04553712]
[1736820633222,3e-07,95001.0,95000.0,3.03653712]
[1736820633646,3e-07,95001.0,95000.0,3.01278265]
[1736820638369,3e-07,95001.0,95000.0,3.01890265]
[1736820638776,3e-07,95001.0,95000.0,2.91890265]
[1736820638981,3e-07,95001.0,95000.0,3.01890265]
[1736820639225,3e-07,95001.0,95000.0,2.83338265]
[1736820639400,3e-07,95001.0,95000.0,2.91650265]
[1736820639601,3e-07,95001.0,95000.0,3.01890265]
[1736820639802,3e-07,95001.0,95000.0,3.30175346]
[1736820640309,3e-07,95001.0,95000.0,3.00990265]
[1736820640673,3e-07,95001.0,95000.0,3.01890265]
[1736820640786,3e-07,95001.0,95000.0,3.30175346]
[1736820640985,3e-07,95001.0,95000.0,3.29275346]
[1736820641189,3e-07,95001.0,95000.0,2.95325346]
[1736820641411,3e-07,95001.0,95000.0,2.25253346]
[1736820641626,3e-07,95001.0,95000.0,2.11868265]
[1736820642027,3e-07,95001.0,95000.0,1.96868265]
[1736820642232,3e-07,95001.0,95000.0,2.47848084]
[1736820642468,3e-07,95001.0,95000.0,2.48748084]
[1736820642732,3e-07,95001.0,95000.0,2.48561763]
[1736820642950,3e-07,95001.0,95000.0,2.37581379]
[1736820643197,3e-07,95001.0,95000.0,2.36981379]
[1736820643341,3e-07,95001.0,95000.0,2.37381379]
[1736820643914,3e-07,95001.0,95000.0,2.36481379]
[1736820644112,3e-07,95001.0,95000.0,2.37381379]
[1736820644314,3e-07,95001.0,95000.0,0.87381379]
[1736820644695,3e-07,95001.0,95000.0,0.86981379]
[1736820644897,3e-07,95001.0,95000.0,2.36381379]
[1736820645324,3e-07,95001.0,95000.0,2.37081379]
[1736820645925,3e-07,95001.0,95000.0,1.51101379]
[1736820646129,3e-07,95001.0,95000.0,1.62081763]
[1736820646492,3e-07,95001.0,95000.0,1.77381763]
[1736820646693,3e-07,95001.0,95000.0,1.79681763]
[1736820647046,3e-07,95001.0,95000.0,1.94571763]
[1736820647299,3e-07,95001.0,95000.0,1.965363]
[1736820647417,3e-07,95001.0,95000.0,1.958363]
[1736820647635,3e-07,95001.0,95000.0,1.955363]
[1736820647839,3e-07,95001.0,95000.0,1.962363]
[1736820648048,0.00179193,95034.0,95018.0,0.360486]
[1736820648049,0.0762,95030.0,95018.0,0.360486]
[1736820648271,0.0762,95030.0,95018.0,0.47227875]
[1736820648788,0.0762,95030.0,95018.0,1.97227875]
[1736820649659,0.0762,95030.0,95018.0,1.98806263]
[1736820650684,0.0018402,95019.0,95018.0,1.98806263]
[1736820651111,0.0018402,95019.0,95018.0,1.99706263]
[1736820652022,0.0018402,95019.0,95018.0,2.85386263]
[1736820652579,0.0018402,95019.0,95018.0,1.35386263]
[1736820652994,0.0018402,95019.0,95018.0,2.85386263]
[1736820653724,0.0018402,95019.0,95018.0,2.97686263]
[1736820654494,0.0018402,95019.0,95018.0,2.85386263]
[1736820654723,0.0018402,95019.0,95018.0,1.35386263]
[1736820656129,0.0780402,95019.0,95018.0,1.13259275]
[1736820656975,0.0780402,95019.0,95018.0,1.12359275]
[1736820657150,0.0780402,95019.0,95018.0,1.13259275]
[1736820657508,0.0780402,95019.0,95018.0,1.12759275]
[1736820657913,0.0780402,95019.0,95018.0,0.58699275]
[1736820658334,0.0780402,95019.0,95018.0,0.59199275]
[1736820658952,0.0780402,95019.0,95018.0,0.58699275]
[1736820659371,0.0780402,95019.0,95018.0,0.58999275]
[1736820659797,0.0780402,95019.0,95018.0,2.08999275]
[1736820660211,0.0018402,95019.0,95018.0,2.08999275]
[1736820661942,0.0018402,95019.0,95018.0,2.08699275]
[1736820662127,0.0018402,95019.0,95018.0,2.09199275]
[1736820662473,0.0018402,95019.0,95018.0,2.08699275]
[1736820662881,0.0018402,95019.0,95018.0,2.10999275]
[1736820663082,0.0018402,95019.0,95018.0,2.10499275]
[1736820663300,0.0018402,95019.0,95018.0,2.12187734]
[1736820663659,0.0018402,95019.0,95018.0,2.11287734]
[1736820663865,0.0018402,95019.0,95018.0,2.65847734]
[1736820664355,0.0018402,95019.0,95018.0,2.65347734]
[1736820664560,0.0018402,95019.0,95018.0,2.66247734]
[1736820664704,0.0018402,95019.0,95018.0,2.74947734]
[1736820665105,0.0018402,95019.0,95018.0,2.77585299]
[1736820665584,0.0018402,95019.0,95018.0,3.05619273]
[1736820665795,0.0018402,95019.0,95018.0,3.07019273]
[1736820666811,0.0018402,95019.0,95018.0,2.83455299]
[1736820667032,0.0018402,95019.0,95018.0,2.66347734]
[1736820667183,0.0018402,95019.0,95018.0,2.67247734]
[1736820667582,0.0018402,95019.0,95018.0,2.65447734]
[1736820668031,0.0018402,95019.0,95018.0,2.65847734]
[1736820668246,0.0018402,95019.0,95018.0,2.64947734]
[1736820668419,0.0018402,95019.0,95018.0,2.65847734]
[1736820668623,0.0018402,95019.0,95018.0,2.66347734]
[1736820669157,0.0018402,95019.0,95018.0,2.65847734]
[1736820669709,0.0018402,95019.0,95018.0,2.75847734]
[1736820670529,0.0018402,95019.0,95018.0,2.76347734]
[1736820670939,0.0018402,95019.0,95018.0,2.77607559]
[1736820672130,0.0018402,95019.0,95018.0,3.01162849]
[1736820672794,0.0018402,95019.0,95018.0,2.77607559]
[1736820673232,0.0018402,95019.0,95018.0,3.01172592]
[1736820673423,0.0018402,95019.0,95018.0,3.00272592]
[1736820673711,0.0018402,95019.0,95018.0,3.00672592]
[1736820673911,0.0018402,95019.0,95018.0,3.01372592]
[1736820674111,0.0018402,95019.0,95018.0,2.77807559]
[1736820674318,0.0018402,95019.0,95018.0,2.77107559]
[1736820674526,0.0018402,95019.0,95018.0,2.76207559]
[1736820674687,0.0018402,95019.0,95018.0,2.76907559]
[1736820674889,0.0018402,95019.0,95018.0,2.77807559]
[1736820675131,0.0018402,95019.0,95018.0,2.76207559]
[1736820675473,0.0018402,95019.0,95018.0,2.77807559]
[1736820676543,0.0769,95056.0,95048.0,0.8568]
[1736820676715,0.00044868,95049.0,95048.0,1.35614284]
[1736820676918,0.00044868,95049.0,95048.0,1.35838474]
[1736820677155,0.00044868,95049.0,95048.0,1.40618474]
[1736820677520,0.00044868,95049.0,95048.0,1.41406933]
[1736820677722,0.00044868,95049.0,95048.0,1.41606933]
[1736820677926,0.00044868,95049.0,95048.0,1.42506933]
[1736820678152,0.00044868,95049.0,95048.0,1.42306933]
[1736820678405,0.00044868,95049.0,95048.0,1.41406933]
[1736820678541,0.00044868,95049.0,95048.0,1.42018474]
[1736820679459,0.00044868,95049.0,95048.0,1.41518474]
[1736820679841,0.00044868,95049.0,95048.0,1.42565279]
[1736820681002,0.00044868,95049.0,95048.0,1.43165279]
[1736820685822,0.00044868,95049.0,95048.0,1.53165279]
[1736820686026,0.00044868,95049.0,95048.0,1.96127079]
[1736820686250,0.00179067,95067.0,95064.0,1.340184]
[1736820686399,0.00179067,95067.0,95064.0,2.94998784]
[1736820686400,0.00227797,95065.0,95064.0,2.94998784]
[1736820686619,0.00227797,95065.0,95064.0,2.95245471]
[1736820688168,0.00227797,95065.0,95064.0,2.95545471]
[1736820688877,0.00227797,95065.0,95064.0,2.9574461]
[1736820689082,0.00227797,95065.0,95064.0,2.9634461]
[1736820689462,0.00227797,95065.0,95064.0,2.9724461]
[1736820689675,0.00227797,95065.0,95064.0,2.9634461]
[1736820690315,0.00227797,95065.0,95064.0,2.98794662]
[1736820690543,0.0008527,95073.0,95065.0,0.173]
[1736820690747,0.0008528,95086.0,95084.0,0.48334]
[1736820690967,0.00090146,95085.0,95084.0,0.64004384]
[1736820691435,0.00090146,95085.0,95084.0,2.15111098]
[1736820693517,0.00090146,95085.0,95084.0,2.1595559]
[1736820693724,0.00090146,95085.0,95084.0,2.1534359]
[1736820693917,0.00090146,95085.0,95084.0,2.1564359]
[1736820694350,0.00090146,95085.0,95084.0,2.1695559]
[1736820694799,0.00090146,95085.0,95084.0,2.1535559]
[1736820695236,0.00090146,95085.0,95084.0,2.17027875]
[1736820695650,0.00090146,95085.0,95084.0,2.27465222]
[1736820696057,2.6e-07,95086.0,95085.0,0.1]
[1736820696264,0.0483,95134.0,95096.0,0.1]
[1736820696467,0.00142979,95097.0,95096.0,1.78134796]
[1736820696637,0.00142979,95097.0,95096.0,2.50682484]
[1736820696836,0.0793,95129.0,95114.0,0.460273]
[1736820697036,0.00193706,95115.0,95114.0,0.59919684]
[1736820698140,0.00193706,95115.0,95114.0,0.60419684]
[1736820698980,0.00193706,95115.0,95114.0,2.10419684]
[1736820699558,0.0018445,95115.0,95114.0,2.10419684]
[1736820699764,0.0018445,95115.0,95114.0,2.11319684]
[1736820699962,0.0018445,95115.0,95114.0,2.11807764]
[1736820700740,0.0018445,95115.0,95114.0,2.1285067]
[1736820701474,0.0018445,95115.0,95114.0,2.0285067]
[1736820701872,0.0018445,95115.0,95114.0,2.8853067]
[1736820704022,0.0018445,95115.0,95114.0,2.8791867]
[1736820704222,0.0018445,95115.0,95114.0,2.9853067]
[1736820707104,0.00173931,95115.0,95114.0,2.9853067]
[1736820708017,0.00173931,95115.0,95114.0,2.9791867]
[1736820708203,0.00173931,95115.0,95114.0,2.9853067]
[1736820708409,0.08063931,95115.0,95114.0,1.3561867]
[1736820708633,0.08063931,95115.0,95114.0,1.35862022]
[1736820709078,0.08063931,95115.0,95114.0,2.85862022]
[1736820709218,0.00173931,95115.0,95114.0,2.85862022]
[1736820709420,0.00173931,95115.0,95114.0,2.84962022]
[1736820709909,0.00173931,95115.0,95114.0,2.85862022]
[1736820710418,0.00173931,95115.0,95114.0,2.85362022]
[1736820710548,0.00173931,95115.0,95114.0,2.84962022]
[1736820710749,0.00173931,95115.0,95114.0,2.85762022]
[1736820711077,0.00173931,95115.0,95114.0,2.85874022]
[1736820711281,0.00173931,95115.0,95114.0,2.86274022]
[1736820712011,0.00173931,95115.0,95114.0,2.85474022]
[1736820712273,0.00173931,95115.0,95114.0,2.84431116]
[1736820712481,0.00173931,95115.0,95114.0,2.85231116]
[1736820712656,0.00173931,95115.0,95114.0,2.84431116]
[1736820713071,0.00173931,95115.0,95114.0,2.84831116]
[1736820713281,0.00173931,95115.0,95114.0,2.84609973]
[1736820713696,0.00173931,95115.0,95114.0,2.85009973]
[1736820713897,0.00173931,95115.0,95114.0,2.84209973]
[1736820714071,0.00173931,95115.0,95114.0,2.84609973]
[1736820714695,0.00173931,95115.0,95114.0,2.84209973]
[1736820715283,0.00173931,95115.0,95114.0,2.85009973]
[1736820715481,0.00173931,95115.0,95114.0,2.84209973]
[1736820715835,0.00173931,95115.0,95114.0,2.85109973]
[1736820716339,0.00173931,95115.0,95114.0,2.85509973]
[1736820716544,0.00173931,95115.0,95114.0,2.84609973]
[1736820716771,0.00173931,95115.0,95114.0,2.84209973]
[1736820716945,0.00173931,95115.0,95114.0,2.85109973]
[1736820717165,0.00173931,95115.0,95114.0,2.85509973]
[1736820717597,0.00173931,95115.0,95114.0,2.85109973]
[1736820717973,0.00173931,95115.0,95114.0,2.84609973]
[1736820718575,0.00173931,95115.0,95114.0,2.85509973]
[1736820720619,0.00173931,95115.0,95114.0,2.86293584]
[1736820722229,0.00173931,95115.0,95114.0,2.85893584]
[1736820722430,0.00173931,95115.0,95114.0,2.84993584]
[1736820722637,0.00173931,95115.0,95114.0,2.86393584]
[1736820723176,0.00173931,95115.0,95114.0,2.85281584]
[1736820723396,0.00173931,95115.0,95114.0,2.85781584]
[1736820723600,0.00173931,95115.0,95114.0,2.70781584]
[1736820723826,0.07773931,95115.0,95114.0,1.851139]
[1736820724161,0.07773931,95115.0,95114.0,2.08421694]
[1736820724673,0.07773931,95115.0,95114.0,2.07638083]
[1736820724877,0.07773931,95115.0,95114.0,1.83430289]
[1736820725292,0.07773931,95115.0,95114.0,1.84330289]
[1736820725429,0.07773931,95115.0,95114.0,1.83430289]
[1736820725640,0.12593931,95115.0,95114.0,1.83930289]
[1736820725833,0.12593931,95115.0,95114.0,1.83430289]
[1736820726271,0.12593931,95115.0,95114.0,1.51910289]
[1736820726669,0.12593931,95115.0,95114.0,0.00910289]
[1736820726844,0.12593931,95115.0,95114.0,0.01210289]
[1736820727043,0.12593931,95115.0,95114.0,0.00478857]
[1736820727914,0.12593931,95115.0,95114.0,0.00378857]
[1736820728365,0.12593931,95115.0,95114.0,0.00178857]
[1736820728539,0.12593931,95115.0,95114.0,0.00278857]
[1736820729462,0.12593931,95115.0,95114.0,0.00378857]
[1736820736199,0.23574315,95115.0,95114.0,0.00278857]
[1736820736401,0.33574315,95115.0,95114.0,0.00178857]
[1736820736846,0.33674315,95115.0,95114.0,0.00178857]
[1736820737575,0.43754368,95115.0,95086.0,1.5]
[1736820737775,0.43754368,95115.0,95069.0,0.23307794]
[1736820737776,0.0549,95087.0,95069.0,0.23307794]
[1736820737974,0.210361,95075.0,95069.0,0.23307794]
[1736820738175,0.0549,95074.0,95070.0,1.5]
[1736820738407,0.210364,95073.0,95070.0,1.5]
[1736820738584,0.0549,95074.0,95071.0,0.00335463]
[1736820738819,0.210364,95073.0,95071.0,0.00335463]
[1736820739224,0.210377,95068.0,95064.0,1.50178941]
[1736820739404,0.210364,95073.0,95064.0,1.50183807]
[1736820739631,0.420728,95073.0,95070.0,0.003]
[1736820739840,0.420728,95073.0,95071.0,0.002]
[1736820740045,0.420728,95073.0,95071.0,0.00835463]
[1736820740241,0.420728,95073.0,95071.0,0.003]
[1736820740376,0.0549,95074.0,95064.0,1.50183807]
[1736820740377,0.210382,95065.0,95064.0,0.00183807]
[1736820740584,0.210382,95065.0,95064.0,0.00383807]
[1736820740969,0.210382,95065.0,95064.0,0.00683807]
[1736820741728,0.210382,95065.0,95064.0,0.00483807]
[1736820742339,0.210382,95065.0,95064.0,0.00183807]
[1736820743165,0.293082,95065.0,95064.0,0.00183807]
[1736820743576,0.291082,95065.0,95064.0,0.00183807]
[1736820743770,0.293082,95065.0,95064.0,0.00183807]
[1736820744852,0.292482,95065.0,95064.0,0.00183807]
[1736820745287,0.290482,95065.0,95064.0,0.00183807]
[1736820745678,0.292482,95065.0,95064.0,0.00183807]
[1736820746113,0.0827,95065.0,95064.0,0.00183807]
[1736820746384,0.002,95065.0,95064.0,0.00183807]
[1736820748882,0.420756,95067.0,95064.0,0.00183807]
[1736820750512,0.421756,95067.0,95064.0,0.00183807]
[1736820756332,0.211378,95067.0,95064.0,0.00183807]
[1736820758344,0.421756,95067.0,95064.0,0.00183807]
[1736820759671,0.211378,95067.0,95064.0,0.00183807]
[1736820760689,0.210378,95067.0,95064.0,0.00183807]
[1736820761191,0.420756,95067.0,95064.0,0.00283807]
[1736820761404,0.4216092,95067.0,95064.0,0.00283807]
[1736820761622,0.2112312,95067.0,95064.0,0.00183807]
[1736820762014,0.2112312,95067.0,95064.0,0.00283807]
[1736820762175,0.4216092,95067.0,95064.0,0.00283807]
[1736820762641,0.4216092,95067.0,95064.0,0.00383807]
[1736820763942,0.4216092,95067.0,95064.0,0.00283807]
[1736820764245,0.4216092,95067.0,95064.0,0.00183807]
[1736820766088,0.4226092,95067.0,95064.0,0.00183807]
[1736820766403,0.4216092,95067.0,95064.0,0.00183807]
[1736820766560,0.4226092,95067.0,95064.0,0.00183807]
[1736820769632,0.2122312,95067.0,95064.0,0.00183807]
[1736820770576,0.4226092,95067.0,95064.0,0.00183807]
[1736820770844,0.2112312,95067.0,95064.0,0.00183807]
[1736820771178,0.2112312,95067.0,95064.0,0.00383807]
[1736820772013,0.4216092,95067.0,95064.0,0.00383807]
[1736820772224,0.4216092,95067.0,95064.0,0.00483807]
[1736820772403,0.2112312,95067.0,95064.0,0.00283807]
[1736820772752,0.0756,95066.0,95065.0,0.00770436]
[1736820772881,0.18540384,95066.0,95065.0,0.00770436]
[1736820773088,0.18540384,95066.0,95064.0,0.00483807]
[1736820773089,0.210382,95065.0,95064.0,0.00483807]
[1736820773299,0.32018584,95065.0,95064.0,0.00483807]
[1736820773506,0.32018584,95065.0,95064.0,0.00283807]
[1736820774508,0.32518584,95065.0,95064.0,0.00183807]
[1736820775738,0.32118584,95065.0,95064.0,0.00183807]
[1736820776136,0.32518584,95065.0,95064.0,0.00183807]
[1736820776750,0.44958584,95065.0,95064.0,0.00183807]
[1736820779151,0.290982,95065.0,95064.0,0.00183807]
[1736820779355,0.215382,95065.0,95064.0,0.00183807]
[1736820780985,0.210382,95065.0,95064.0,0.00183807]
[1736820782330,0.32218584,95065.0,95064.0,0.00183807]
[1736820782525,0.40528584,95065.0,95064.0,0.00183807]
[1736820782760,0.40328584,95065.0,95064.0,0.00183807]
[1736820782928,0.40528584,95065.0,95064.0,0.00183807]
[1736820783553,0.300482,95065.0,95064.0,0.00183807]
[1736820783754,0.298482,95065.0,95064.0,0.00183807]
[1736820783962,0.215382,95065.0,95064.0,0.00183807]
[1736820784164,0.01,95065.0,95064.0,0.00183807]
[1736820784362,0.01,95065.0,95064.0,0.05173807]
[1736820784783,0.011,95065.0,95064.0,0.05944941]
[1736820784985,0.011,95065.0,95064.0,0.14254941]
[1736820785187,0.0108532,95065.0,95064.0,0.25235325]
[1736820785384,0.0008532,95065.0,95064.0,0.25235325]
[1736820785546,0.0038532,95065.0,95064.0,0.25235325]
[1736820786157,0.0038532,95065.0,95064.0,0.25435325]
[1736820786384,0.0038532,95065.0,95064.0,1.75935325]
[1736820786553,0.0008532,95065.0,95064.0,1.75435325]
[1736820786964,0.0008532,95065.0,95064.0,1.76035325]
[1736820787201,0.0008532,95065.0,95064.0,1.98743119]
[1736820787559,0.210308,95099.0,95064.0,1.98743119]
[1736820787560,0.0831,95122.0,95071.0,0.133]
[1736820787770,0.210278,95112.0,95090.0,0.3383048]
[1736820787945,0.210278,95112.0,95096.0,0.210313]
[1736820788237,0.210278,95112.0,95097.0,0.00592498]
[1736820788646,0.03,95103.0,95097.0,0.00592498]
[1736820789027,0.03,95103.0,95098.0,0.210309]
[1736820789548,0.03,95103.0,95097.0,0.00592498]
[1736820789975,0.03,95103.0,95097.0,0.00692498]
[1736820790183,0.03,95103.0,95097.0,0.00592498]
[1736820790796,0.03,95103.0,95098.0,0.002]
[1736820790981,0.03,95103.0,95099.0,0.210307]
[1736820791180,0.03,95103.0,95100.0,0.00268993]
[1736820791672,0.03,95103.0,95098.0,0.0519]
[1736820791887,0.03,95103.0,95101.0,0.00860772]
[1736820792097,0.03,95103.0,95098.0,0.0519]
[1736820792227,0.03,95103.0,95102.0,0.00860717]
[1736820792421,0.03,95103.0,95099.0,0.0495315]
[1736820792650,0.03,95103.0,95102.0,0.00860717]
[1736820792851,0.03,95103.0,95101.0,0.210301]
[1736820793104,0.03,95103.0,95102.0,0.00860717]
[1736820793336,0.03,95103.0,95102.0,0.06887951]
[1736820793667,0.03,95103.0,95102.0,0.06987951]
[1736820794134,0.03,95103.0,95102.0,0.06887951]
[1736820795218,0.03,95103.0,95102.0,0.07187951]
[1736820795424,0.03,95103.0,95102.0,0.07387951]
[1736820795632,0.03,95103.0,95102.0,0.07187951]
[1736820796180,0.03,95103.0,95102.0,0.07687951]
[1736820797156,0.0308532,95103.0,95102.0,0.07687951]
[1736820800135,0.0308532,95103.0,95102.0,0.18668335]
[1736820800136,0.0008532,95103.0,95102.0,0.18668335]
[1736820800731,0.0008532,95103.0,95102.0,1.68668335]
[1736820801349,0.0008532,95103.0,95102.0,2.47798335]
[1736820802365,0.0008532,95103.0,95102.0,2.46998335]
[1736820802548,0.0008532,95103.0,95102.0,2.47898335]
[1736820802957,0.0008532,95103.0,95102.0,2.46998335]
[1736820803163,0.0008532,95103.0,95102.0,2.47898335]
[1736820803765,0.0008532,95103.0,95102.0,2.48398335]
[1736820803956,0.0008532,95103.0,95102.0,2.47498335]
[1736820804148,0.0008532,95103.0,95102.0,2.46998335]
[1736820804358,0.0008532,95103.0,95102.0,2.48498335]
[1736820805309,0.0008532,95103.0,95102.0,2.48568335]
[1736820806309,0.0007266,95103.0,95102.0,2.48568335]
[1736820806660,0.0007266,95103.0,95102.0,2.47968335]
[1736820807105,0.0007266,95103.0,95102.0,2.47668335]
[1736820807257,0.0007266,95103.0,95102.0,2.48568335]
[1736820808427,0.0007266,95103.0,95102.0,2.48498335]
[1736820810941,0.0007266,95103.0,95102.0,2.53478335]
[1736820812407,0.0007266,95103.0,95102.0,2.54090335]
[1736820816092,0.0007266,95103.0,95102.0,2.54876814]
[1736820816659,2.66e-05,95103.0,95102.0,2.54876814]
[1736820820329,2.66e-05,95103.0,95102.0,2.43794814]
[1736820820957,2.66e-05,95103.0,95102.0,2.43973923]
[1736820821362,2.66e-05,95103.0,95102.0,2.43373923]
[1736820821563,2.66e-05,95103.0,95102.0,2.43973923]
[1736820823154,2.66e-05,95103.0,95102.0,2.43073923]
[1736820823564,2.66e-05,95103.0,95102.0,2.43373923]
[1736820823914,2.66e-05,95103.0,95102.0,2.43073923]
[1736820824143,2.66e-05,95103.0,95102.0,2.43973923]
[1736820825541,2.66e-05,95103.0,95102.0,2.67576282]
[1736820827211,2.66e-05,95103.0,95102.0,2.43973923]
[1736820829356,0.00033242,95115.0,95114.0,0.210273]
[1736820829558,0.00033242,95115.0,95114.0,0.26569189]
[1736820829559,0.00047839,95115.0,95114.0,0.26569189]
[1736820829805,0.00047839,95115.0,95114.0,0.50410081]
[1736820830485,0.00047839,95115.0,95114.0,0.26834101]
[1736820830668,0.00047839,95115.0,95114.0,0.2862058]
[1736820830874,0.00047839,95115.0,95114.0,1.7862058]
[1736820831285,0.00047839,95115.0,95114.0,2.02213711]
[1736820831490,0.00047839,95115.0,95114.0,2.01913711]
[1736820831846,0.00047839,95115.0,95114.0,0.52213711]
[1736820832024,0.00047839,95115.0,95114.0,0.06806801]
[1736820832618,0.00047839,95115.0,95114.0,0.06106801]
[1736820833152,0.00047839,95115.0,95114.0,0.29727014]
[1736820833350,0.00047839,95115.0,95114.0,0.29427014]
[1736820833556,0.00047839,95115.0,95114.0,0.06406801]
[1736820833960,0.00047839,95115.0,95114.0,0.05806801]
[1736820834153,0.00047839,95115.0,95114.0,0.06006801]
[1736820834682,0.00047839,95115.0,95114.0,0.05906801]
[1736820834898,0.00047839,95115.0,95114.0,0.06106801]
[1736820835498,0.00047839,95115.0,95114.0,0.06006801]
[1736820835697,0.00047839,95115.0,95114.0,0.06406801]
[1736820835959,0.07777839,95115.0,95114.0,0.01453651]
[1736820836691,0.07777839,95115.0,95114.0,0.01253651]
[1736820837146,0.07777839,95115.0,95114.0,0.00853651]
[1736820837336,0.210273,95114.0,95104.0,1.5]
[1736820837872,0.210273,95114.0,95105.0,0.00853747]
[1736820838411,0.07777839,95115.0,95105.0,0.00853747]
[1736820838610,0.210287,95108.0,95105.0,0.00853747]
[1736820838867,0.0757,95107.0,95105.0,0.00853747]
[1736820839519,0.285989,95107.0,95102.0,0.53839109]
[1736820840129,0.285989,95107.0,95105.0,0.002]
[1736820840334,0.0757,95107.0,95102.0,0.53839109]
[1736820840536,0.0757,95107.0,95102.0,0.00179109]
[1736820840739,0.0757,95107.0,95103.0,0.00853857]
[1736820840950,0.0757,95107.0,95102.0,0.00179109]
[1736820840951,0.28599,95107.0,95105.0,0.001]
[1736820841365,0.28599,95107.0,95102.0,0.00179109]
[1736820841768,0.28599,95107.0,95102.0,0.00379109]
[1736820841987,0.28599,95107.0,95102.0,0.00179109]
[1736820842402,0.0757,95107.0,95102.0,0.00179109]
[1736820842944,0.0757,95107.0,95103.0,0.21883657]
[1736820843368,0.0757,95107.0,95104.0,1.5]
[1736820843513,0.0757,95107.0,95103.0,0.00853857]
[1736820843713,0.210291,95106.0,95105.0,0.00263018]
[1736820843880,0.210291,95106.0,95102.0,0.00179109]
[1736820844282,0.210291,95106.0,95103.0,0.001]
[1736820845892,0.210291,95106.0,95102.0,0.00179109]
[1736820846020,0.210291,95106.0,95102.0,0.00279109]
[1736820846235,0.210298,95103.0,95102.0,0.00279109]
[1736820846459,0.210298,95103.0,95102.0,0.00179109]
[1736820848375,0.337998,95103.0,95102.0,0.00179109]
[1736820855967,0.339998,95103.0,95102.0,0.00179109]
[1736820856378,0.337998,95103.0,95102.0,0.00179109]